[Event "Late-Titled-Tuesday-Blitz-January-30-2024"]
[Site "Chess.com"]
[Date "2024.01.30"]
[Round "9"]
[White "ArtemDyachuk"]
[Black "ContrVersia"]
[Result "0-1"]
[WhiteElo "2637"]
[BlackElo "2842"]
[TimeControl "180+1"]
[EndTime "15:42:29 PST"]
[Termination "ContrVersia won by checkmate"]

1. d4 {[%clk 0:03:00.9]} 1... Nf6 {[%clk 0:02:09.7]} 2. c4 {[%clk 0:02:59.4]}
2... g6 {[%clk 0:02:09.9]} 3. Nc3 {[%clk 0:02:58.5]} 3... Bg7 {[%clk 0:02:10.4]}
4. e4 {[%clk 0:02:58.6]} 4... O-O {[%clk 0:02:10.7]} 5. f3 {[%clk 0:02:58]} 5...
d6 {[%clk 0:02:10]} 6. Be3 {[%clk 0:02:58.6]} 6... c5 {[%clk 0:02:10.4]} 7. dxc5
{[%clk 0:02:57.5]} 7... dxc5 {[%clk 0:02:11.3]} 8. Qxd8 {[%clk 0:02:48.1]} 8...
Rxd8 {[%clk 0:02:12.2]} 9. Bxc5 {[%clk 0:02:48.3]} 9... Nc6 {[%clk 0:02:12.2]}
10. Nge2 {[%clk 0:02:39.8]} 10... b6 {[%clk 0:02:08.6]} 11. Ba3 {[%clk
0:02:38.9]} 11... Nd7 {[%clk 0:02:06.2]} 12. Rd1 {[%clk 0:02:21.9]} 12... Ba6
{[%clk 0:02:05.2]} 13. Nc1 {[%clk 0:02:19.9]} 13... Nc5 {[%clk 0:01:55.6]} 14.
Nd5 {[%clk 0:02:04.8]} 14... e6 {[%clk 0:01:52.8]} 15. Nc7 {[%clk 0:01:32.2]}
15... Rxd1+ {[%clk 0:01:52.4]} 16. Kxd1 {[%clk 0:01:32.7]} 16... Rd8+ {[%clk
0:01:53]} 17. Ke1 {[%clk 0:01:33.3]} 17... Bb7 {[%clk 0:01:52.9]} 18. Nb5 {[%clk
0:01:03.5]} 18... Bh6 {[%clk 0:01:51.6]} 19. Nb3 {[%clk 0:00:52.4]} 19... a6
{[%clk 0:01:42.7]} 20. Nc3 {[%clk 0:00:33.3]} 20... Nxb3 {[%clk 0:01:37.2]} 21.
axb3 {[%clk 0:00:34.2]} 21... Nd4 {[%clk 0:01:32.5]} 22. Be7 {[%clk 0:00:27.4]}
22... Rd7 {[%clk 0:01:27.8]} 23. Bf6 {[%clk 0:00:27.8]} 23... Be3 {[%clk
0:01:17.9]} 24. b4 {[%clk 0:00:26]} 24... Nc2+ {[%clk 0:01:16.9]} 25. Ke2 {[%clk
0:00:25.7]} 25... Rd2# {[%clk 0:01:16.8]} 0-1

[Event "Late-Titled-Tuesday-Blitz-January-30-2024"]
[Site "Chess.com"]
[Date "2024.01.30"]
[Round "9"]
[White "FairChess_on_YouTube"]
[Black "TigrVShlyape"]
[Result "1-0"]
[WhiteElo "3092"]
[BlackElo "2958"]
[TimeControl "180+1"]
[EndTime "15:42:36 PST"]
[Termination "FairChess_on_YouTube won on time"]

1. e4 {[%clk 0:03:00.9]} 1... e5 {[%clk 0:02:56]} 2. Nf3 {[%clk 0:03:00.6]} 2...
Nc6 {[%clk 0:02:56.1]} 3. d4 {[%clk 0:03:00.9]} 3... exd4 {[%clk 0:02:55.6]} 4.
Nxd4 {[%clk 0:03:01.8]} 4... Bc5 {[%clk 0:02:54.5]} 5. Be3 {[%clk 0:02:58.6]}
5... Qf6 {[%clk 0:02:54]} 6. c3 {[%clk 0:02:59.1]} 6... Nge7 {[%clk 0:02:54.3]}
7. Bb5 {[%clk 0:02:58]} 7... Bb6 {[%clk 0:02:45.6]} 8. O-O {[%clk 0:02:56]} 8...
O-O {[%clk 0:02:44.6]} 9. a4 {[%clk 0:02:49.6]} 9... d5 {[%clk 0:02:36.5]} 10.
Bxc6 {[%clk 0:02:46]} 10... bxc6 {[%clk 0:02:18.7]} 11. a5 {[%clk 0:02:46.2]}
11... Bc5 {[%clk 0:02:18.8]} 12. Nd2 {[%clk 0:02:39]} 12... Ba6 {[%clk
0:02:16.2]} 13. Re1 {[%clk 0:02:36.7]} 13... Bd6 {[%clk 0:02:13.8]} 14. N2f3
{[%clk 0:02:25.4]} 14... dxe4 {[%clk 0:01:52.8]} 15. Bg5 {[%clk 0:02:25.1]}
15... Qg6 {[%clk 0:01:52.7]} 16. Bxe7 {[%clk 0:02:25]} 16... Bxe7 {[%clk
0:01:07.1]} 17. Ne5 {[%clk 0:02:24.5]} 17... Qg5 {[%clk 0:01:05.4]} 18. Rxe4
{[%clk 0:02:21.4]} 18... c5 {[%clk 0:00:58.7]} 19. h4 {[%clk 0:02:07.4]} 19...
Qh6 {[%clk 0:00:29.5]} 20. Nf5 {[%clk 0:02:07.2]} 20... Qf6 {[%clk 0:00:26.3]}
21. Qf3 {[%clk 0:01:50.5]} 21... Bc8 {[%clk 0:00:05.8]} 22. Nxe7+ {[%clk
0:01:50.4]} 22... Qxe7 {[%clk 0:00:05.8]} 23. Ng6 {[%clk 0:01:51]} 23... Qd6
{[%clk 0:00:03.3]} 24. Nxf8 {[%clk 0:01:48.5]} 24... Bb7 {[%clk 0:00:03.6]} 25.
Nxh7 {[%clk 0:01:33.8]} 1-0

[Event "Late-Titled-Tuesday-Blitz-January-30-2024"]
[Site "Chess.com"]
[Date "2024.01.30"]
[Round "9"]
[White "cthulhuuu"]
[Black "RantomOpening"]
[Result "1-0"]
[WhiteElo "2421"]
[BlackElo "2520"]
[TimeControl "180+1"]
[EndTime "15:42:41 PST"]
[Termination "cthulhuuu won by resignation"]

1. e4 {[%clk 0:03:00.9]} 1... c5 {[%clk 0:03:00.2]} 2. Nf3 {[%clk 0:02:57.9]}
2... e6 {[%clk 0:03:00.6]} 3. d3 {[%clk 0:02:56.3]} 3... Nc6 {[%clk 0:03:00.6]}
4. g3 {[%clk 0:02:55.7]} 4... Nf6 {[%clk 0:03:00.3]} 5. Bg2 {[%clk 0:02:54.8]}
5... d5 {[%clk 0:03:00.7]} 6. Nbd2 {[%clk 0:02:52.5]} 6... Be7 {[%clk
0:03:00.9]} 7. O-O {[%clk 0:02:51.8]} 7... O-O {[%clk 0:03:01.1]} 8. e5 {[%clk
0:02:51.6]} 8... Nd7 {[%clk 0:03:00.6]} 9. Re1 {[%clk 0:02:52.5]} 9... Qc7
{[%clk 0:02:58.7]} 10. Qe2 {[%clk 0:02:52.4]} 10... b5 {[%clk 0:02:59.2]} 11. h4
{[%clk 0:02:51.4]} 11... Bb7 {[%clk 0:02:58.3]} 12. Nf1 {[%clk 0:02:51.4]} 12...
d4 {[%clk 0:02:58.4]} 13. Bf4 {[%clk 0:02:50.5]} 13... Nb6 {[%clk 0:02:57.7]}
14. N1h2 {[%clk 0:02:49.3]} 14... Nd5 {[%clk 0:02:57.8]} 15. Bg5 {[%clk
0:02:48.5]} 15... Rae8 {[%clk 0:02:42.2]} 16. Ng4 {[%clk 0:02:22.6]} 16... Bxg5
{[%clk 0:02:23.2]} 17. hxg5 {[%clk 0:02:04.1]} 17... Nce7 {[%clk 0:02:22.4]} 18.
Nf6+ {[%clk 0:01:58.6]} 18... gxf6 {[%clk 0:02:16.9]} 19. gxf6 {[%clk
0:01:58.5]} 19... Nf5 {[%clk 0:02:10.1]} 20. g4 {[%clk 0:01:55.8]} 20... Nf4
{[%clk 0:02:10]} 21. Qd2 {[%clk 0:01:51.6]} 21... Nxg2 {[%clk 0:01:52.1]} 22.
Kxg2 {[%clk 0:01:08.4]} 22... Bxf3+ {[%clk 0:01:37.9]} 23. Kxf3 {[%clk
0:01:06.6]} 23... Qc6+ {[%clk 0:01:38.1]} 24. Re4 {[%clk 0:01:06.1]} 24... Kh8
{[%clk 0:01:32.3]} 25. Rh1 {[%clk 0:00:49.6]} 25... Ne3 {[%clk 0:01:04.7]} 26.
fxe3 {[%clk 0:00:49.2]} 26... Rg8 {[%clk 0:01:05.4]} 27. Rxh7+ {[%clk
0:00:38.7]} 27... Kxh7 {[%clk 0:01:02.9]} 28. Qh2+ {[%clk 0:00:39.1]} 1-0

[Event "Late-Titled-Tuesday-Blitz-January-30-2024"]
[Site "Chess.com"]
[Date "2024.01.30"]
[Round "9"]
[White "Alex_Banzea"]
[Black "GMKrikor"]
[Result "1-0"]
[WhiteElo "2642"]
[BlackElo "2783"]
[TimeControl "180+1"]
[EndTime "15:42:42 PST"]
[Termination "Alex_Banzea won on time"]

1. d4 {[%clk 0:02:47.1]} 1... Nf6 {[%clk 0:02:59.6]} 2. Nc3 {[%clk 0:02:44.5]}
2... d5 {[%clk 0:02:58.7]} 3. Bf4 {[%clk 0:02:44.2]} 3... a6 {[%clk 0:02:54.4]}
4. e3 {[%clk 0:02:44.4]} 4... Bf5 {[%clk 0:02:54.2]} 5. f3 {[%clk 0:02:44.3]}
5... h6 {[%clk 0:02:49.8]} 6. g4 {[%clk 0:02:44.5]} 6... Bh7 {[%clk 0:02:50]} 7.
Bd3 {[%clk 0:02:45.4]} 7... Bxd3 {[%clk 0:02:47.9]} 8. Qxd3 {[%clk 0:02:46.3]}
8... e6 {[%clk 0:02:48.1]} 9. Nge2 {[%clk 0:02:47]} 9... c5 {[%clk 0:02:48]} 10.
e4 {[%clk 0:02:45.9]} 10... Nc6 {[%clk 0:02:38.5]} 11. O-O-O {[%clk 0:02:44.6]}
11... c4 {[%clk 0:02:31.2]} 12. Qe3 {[%clk 0:02:44.6]} 12... Bb4 {[%clk
0:02:06]} 13. h4 {[%clk 0:02:16.7]} 13... dxe4 {[%clk 0:01:45.4]} 14. fxe4
{[%clk 0:02:17.1]} 14... Nxg4 {[%clk 0:01:38.2]} 15. Qg3 {[%clk 0:02:17.3]}
15... h5 {[%clk 0:01:38.5]} 16. d5 {[%clk 0:02:17.6]} 16... exd5 {[%clk
0:01:27.9]} 17. Nxd5 {[%clk 0:02:09.8]} 17... Qa5 {[%clk 0:00:27.6]} 18. Nc7+
{[%clk 0:02:08.7]} 18... Kf8 {[%clk 0:00:28.1]} 19. a3 {[%clk 0:02:04.2]} 19...
Bxa3 {[%clk 0:00:27.6]} 20. Qxa3+ {[%clk 0:01:54.1]} 20... Qxa3 {[%clk
0:00:18.2]} 21. bxa3 {[%clk 0:01:55]} 21... Rc8 {[%clk 0:00:17.3]} 22. Rhf1
{[%clk 0:01:55.7]} 22... Kg8 {[%clk 0:00:16.1]} 23. Rd7 {[%clk 0:01:50.1]} 23...
f6 {[%clk 0:00:06.3]} 24. Ne6 {[%clk 0:01:50.6]} 24... Rh7 {[%clk 0:00:06.3]}
25. Rxb7 {[%clk 0:01:45.4]} 25... c3 {[%clk 0:00:02.4]} 26. Rd1 {[%clk
0:01:41.6]} 26... Nce5 {[%clk 0:00:02]} 27. Bxe5 {[%clk 0:01:32.1]} 27... Nxe5
{[%clk 0:00:02.9]} 28. Nxc3 {[%clk 0:01:32.3]} 1-0

[Event "Late-Titled-Tuesday-Blitz-January-30-2024"]
[Site "Chess.com"]
[Date "2024.01.30"]
[Round "9"]
[White "HajiyevKanan"]
[Black "GAO"]
[Result "1-0"]
[WhiteElo "2556"]
[BlackElo "2386"]
[TimeControl "180+1"]
[EndTime "15:42:42 PST"]
[Termination "HajiyevKanan won by resignation"]

1. d4 {[%clk 0:02:55.8]} 1... Nf6 {[%clk 0:02:56.2]} 2. Nf3 {[%clk 0:02:56.7]}
2... e6 {[%clk 0:02:56]} 3. c4 {[%clk 0:02:53.1]} 3... d5 {[%clk 0:02:53.9]} 4.
cxd5 {[%clk 0:02:54]} 4... exd5 {[%clk 0:02:51.8]} 5. Nc3 {[%clk 0:02:54.6]}
5... Bb4 {[%clk 0:02:51.8]} 6. Qa4+ {[%clk 0:02:53.2]} 6... Nc6 {[%clk
0:02:51.7]} 7. Bd2 {[%clk 0:02:53.8]} 7... O-O {[%clk 0:02:50.1]} 8. e3 {[%clk
0:02:54.3]} 8... Re8 {[%clk 0:02:47.7]} 9. Bd3 {[%clk 0:02:54.8]} 9... a5 {[%clk
0:02:41.3]} 10. O-O {[%clk 0:02:47.2]} 10... Ne7 {[%clk 0:02:39]} 11. Qc2 {[%clk
0:02:45.2]} 11... c6 {[%clk 0:02:31.1]} 12. Ne5 {[%clk 0:02:44.3]} 12... Bd6
{[%clk 0:02:25.7]} 13. f4 {[%clk 0:02:44.5]} 13... Ng6 {[%clk 0:02:20.5]} 14.
Be1 {[%clk 0:02:44.4]} 14... Bd7 {[%clk 0:02:05.8]} 15. Kh1 {[%clk 0:02:40.9]}
15... b5 {[%clk 0:02:05.8]} 16. Bf2 {[%clk 0:02:40]} 16... a4 {[%clk 0:01:24.6]}
17. Ne2 {[%clk 0:02:38.5]} 17... Rc8 {[%clk 0:01:21.1]} 18. b3 {[%clk
0:02:34.6]} 18... a3 {[%clk 0:01:17.9]} 19. Rac1 {[%clk 0:02:31.2]} 19... Ng4
{[%clk 0:01:03.7]} 20. Nxd7 {[%clk 0:02:28.1]} 20... Qxd7 {[%clk 0:00:58.6]} 21.
Bf5 {[%clk 0:02:27.8]} 21... Nxf2+ {[%clk 0:00:45.6]} 22. Rxf2 {[%clk
0:02:28.7]} 22... Qe7 {[%clk 0:00:43.5]} 23. Bxc8 {[%clk 0:02:28.7]} 23... Rxc8
{[%clk 0:00:44.4]} 24. Qd3 {[%clk 0:02:24.4]} 24... Nf8 {[%clk 0:00:34.4]} 25.
Nc3 {[%clk 0:02:18.8]} 25... Re8 {[%clk 0:00:30.3]} 26. Re2 {[%clk 0:02:15.2]}
26... Nd7 {[%clk 0:00:29.1]} 27. Rf1 {[%clk 0:02:08.8]} 27... Nf6 {[%clk
0:00:28.6]} 28. Qf5 {[%clk 0:01:58.8]} 28... g6 {[%clk 0:00:20.3]} 29. Qg5
{[%clk 0:01:59.4]} 29... Kg7 {[%clk 0:00:19.8]} 30. h3 {[%clk 0:01:57.9]} 30...
h6 {[%clk 0:00:19.8]} 31. Qh4 {[%clk 0:01:57]} 31... Bb4 {[%clk 0:00:18.1]} 32.
Nd1 {[%clk 0:01:55.5]} 32... Ne4 {[%clk 0:00:18.2]} 33. Qxe7 {[%clk 0:01:55.1]}
33... Rxe7 {[%clk 0:00:19.1]} 34. Kh2 {[%clk 0:01:55]} 34... Kf6 {[%clk
0:00:17.9]} 35. Nf2 {[%clk 0:01:54]} 35... Nc3 {[%clk 0:00:17.2]} 36. Ng4+
{[%clk 0:01:51.1]} 36... Kg7 {[%clk 0:00:16.6]} 37. Rc2 {[%clk 0:01:51.2]} 37...
h5 {[%clk 0:00:16.9]} 38. Ne5 {[%clk 0:01:51.4]} 38... Re6 {[%clk 0:00:13.6]}
39. Rfc1 {[%clk 0:01:51]} 39... Rf6 {[%clk 0:00:09.6]} 40. Rxc3 {[%clk
0:01:50.4]} 1-0

[Event "Late-Titled-Tuesday-Blitz-January-30-2024"]
[Site "Chess.com"]
[Date "2024.01.30"]
[Round "9"]
[White "Szparu"]
[Black "blitis"]
[Result "0-1"]
[WhiteElo "2779"]
[BlackElo "2640"]
[TimeControl "180+1"]
[EndTime "15:42:54 PST"]
[Termination "blitis won by checkmate"]

1. e4 {[%clk 0:03:00.9]} 1... c5 {[%clk 0:02:59.3]} 2. Nf3 {[%clk 0:03:00.5]}
2... a6 {[%clk 0:02:59.4]} 3. c4 {[%clk 0:03:00.1]} 3... d6 {[%clk 0:02:59.4]}
4. d4 {[%clk 0:02:59.9]} 4... cxd4 {[%clk 0:02:59.9]} 5. Nxd4 {[%clk 0:03:00.8]}
5... Nf6 {[%clk 0:03:00.4]} 6. Nc3 {[%clk 0:03:00.7]} 6... e6 {[%clk 0:03:00.8]}
7. Be2 {[%clk 0:02:59]} 7... Be7 {[%clk 0:03:01.2]} 8. O-O {[%clk 0:02:59.3]}
8... O-O {[%clk 0:03:01.8]} 9. Be3 {[%clk 0:02:59.9]} 9... b6 {[%clk 0:03:02.3]}
10. Qd2 {[%clk 0:02:46.3]} 10... Bb7 {[%clk 0:03:01.7]} 11. f3 {[%clk 0:02:47]}
11... Qc7 {[%clk 0:03:01]} 12. Rfc1 {[%clk 0:02:47.6]} 12... Nbd7 {[%clk
0:03:00]} 13. b4 {[%clk 0:02:47.4]} 13... Rac8 {[%clk 0:02:58.5]} 14. Rab1
{[%clk 0:02:42]} 14... Qb8 {[%clk 0:02:58.1]} 15. Na4 {[%clk 0:02:23.1]} 15...
Bd8 {[%clk 0:02:51.3]} 16. Kh1 {[%clk 0:02:20.4]} 16... Bc7 {[%clk 0:02:47.5]}
17. Bg1 {[%clk 0:02:21]} 17... d5 {[%clk 0:02:36.9]} 18. cxd5 {[%clk 0:02:21]}
18... exd5 {[%clk 0:02:35.1]} 19. exd5 {[%clk 0:02:15.4]} 19... Bf4 {[%clk
0:02:21.5]} 20. Be3 {[%clk 0:02:16]} 20... Bxe3 {[%clk 0:02:16.4]} 21. Qxe3
{[%clk 0:02:16.6]} 21... Nxd5 {[%clk 0:02:16.4]} 22. Qd2 {[%clk 0:02:13.9]}
22... N7f6 {[%clk 0:02:09.1]} 23. Nf5 {[%clk 0:02:08.8]} 23... Rxc1+ {[%clk
0:01:54.6]} 24. Rxc1 {[%clk 0:02:08.6]} 24... Bc8 {[%clk 0:01:43.9]} 25. Nd4
{[%clk 0:02:05.9]} 25... Re8 {[%clk 0:01:36.8]} 26. Nc3 {[%clk 0:02:04.9]} 26...
Nxb4 {[%clk 0:01:05.7]} 27. Bc4 {[%clk 0:02:00.5]} 27... b5 {[%clk 0:01:00.5]}
28. Bb3 {[%clk 0:01:58.3]} 28... Qd6 {[%clk 0:00:57.1]} 29. a3 {[%clk
0:01:53.4]} 29... Nc6 {[%clk 0:00:47.5]} 30. Ncxb5 {[%clk 0:01:53.8]} 30... axb5
{[%clk 0:00:43.9]} 31. Rxc6 {[%clk 0:01:54.4]} 31... Qf4 {[%clk 0:00:21.4]} 32.
Qc3 {[%clk 0:01:39]} 32... Bd7 {[%clk 0:00:13.2]} 33. Rc7 {[%clk 0:01:33.3]}
33... Qxc7 {[%clk 0:00:12.6]} 34. Qxc7 {[%clk 0:01:27]} 34... Re1# {[%clk
0:00:11.6]} 0-1

[Event "Late-Titled-Tuesday-Blitz-January-30-2024"]
[Site "Chess.com"]
[Date "2024.01.30"]
[Round "9"]
[White "Walter_White_Poland"]
[Black "kikoveiga"]
[Result "0-1"]
[WhiteElo "2334"]
[BlackElo "2525"]
[TimeControl "180+1"]
[EndTime "15:43:02 PST"]
[Termination "kikoveiga won by resignation"]

1. e4 {[%clk 0:02:35.1]} 1... Nc6 {[%clk 0:02:32.8]} 2. Nf3 {[%clk 0:02:32.6]}
2... Nf6 {[%clk 0:02:31.4]} 3. d4 {[%clk 0:02:29.1]} 3... Nxe4 {[%clk
0:02:30.1]} 4. d5 {[%clk 0:02:27.1]} 4... Nb8 {[%clk 0:02:30.7]} 5. Qd4 {[%clk
0:02:13.6]} 5... Nf6 {[%clk 0:02:29.5]} 6. Bg5 {[%clk 0:02:11.3]} 6... d6 {[%clk
0:02:29.7]} 7. Bxf6 {[%clk 0:02:03.2]} 7... exf6 {[%clk 0:02:29]} 8. Nc3 {[%clk
0:02:02.9]} 8... Be7 {[%clk 0:02:29]} 9. Bd3 {[%clk 0:01:55.5]} 9... O-O {[%clk
0:02:27.5]} 10. O-O-O {[%clk 0:01:54.7]} 10... Nd7 {[%clk 0:02:24.2]} 11. h4
{[%clk 0:01:44.4]} 11... Ne5 {[%clk 0:02:23.6]} 12. Bxh7+ {[%clk 0:01:22.3]}
12... Kxh7 {[%clk 0:02:21.5]} 13. Ng5+ {[%clk 0:01:22.3]} 13... Kg8 {[%clk
0:02:19.9]} 14. f4 {[%clk 0:01:18.3]} 14... Ng4 {[%clk 0:02:14.9]} 15. Rde1
{[%clk 0:01:09.9]} 15... fxg5 {[%clk 0:02:07.7]} 16. hxg5 {[%clk 0:01:08.6]}
16... Bf5 {[%clk 0:02:06.1]} 17. Rh3 {[%clk 0:00:46.9]} 17... Bxg5 {[%clk
0:01:59.4]} 18. fxg5 {[%clk 0:00:36.9]} 18... Qxg5+ {[%clk 0:02:00.3]} 19. Kb1
{[%clk 0:00:34.4]} 19... Rfe8 {[%clk 0:01:59.7]} 20. Reh1 {[%clk 0:00:16.3]}
20... Nh6 {[%clk 0:01:58.7]} 21. Rh5 {[%clk 0:00:15.8]} 21... Qg6 {[%clk
0:01:55.8]} 22. g4 {[%clk 0:00:11]} 22... Bxc2+ {[%clk 0:01:55.1]} 23. Kc1
{[%clk 0:00:10.2]} 23... Be4 {[%clk 0:01:47.3]} 24. g5 {[%clk 0:00:08.5]} 24...
Bxh1 {[%clk 0:01:47.2]} 25. gxh6 {[%clk 0:00:06.1]} 25... Re1+ {[%clk
0:01:26.3]} 26. Kd2 {[%clk 0:00:05.6]} 26... Rae8 {[%clk 0:01:23.9]} 27. hxg7
{[%clk 0:00:05.5]} 27... Qxh5 {[%clk 0:01:08.4]} 0-1

[Event "Late-Titled-Tuesday-Blitz-January-30-2024"]
[Site "Chess.com"]
[Date "2024.01.30"]
[Round "9"]
[White "GoltsevDmitry2000"]
[Black "ozates"]
[Result "0-1"]
[WhiteElo "2801"]
[BlackElo "2645"]
[TimeControl "180+1"]
[EndTime "15:43:07 PST"]
[Termination "ozates won by checkmate"]

1. e4 {[%clk 0:03:00.9]} 1... c5 {[%clk 0:02:57.1]} 2. Nf3 {[%clk 0:03:00.3]}
2... Nc6 {[%clk 0:02:57.9]} 3. d4 {[%clk 0:03:00.8]} 3... cxd4 {[%clk
0:02:58.8]} 4. Nxd4 {[%clk 0:03:01.1]} 4... e5 {[%clk 0:02:59.1]} 5. Nf5 {[%clk
0:03:00.6]} 5... d5 {[%clk 0:02:55.3]} 6. Qxd5 {[%clk 0:02:59.3]} 6... Qxd5
{[%clk 0:02:55]} 7. exd5 {[%clk 0:03:00.2]} 7... Bxf5 {[%clk 0:02:55.4]} 8. dxc6
{[%clk 0:03:01.1]} 8... bxc6 {[%clk 0:02:54.9]} 9. Bd3 {[%clk 0:03:01.8]} 9...
Bxd3 {[%clk 0:02:50.7]} 10. cxd3 {[%clk 0:03:02.7]} 10... f5 {[%clk 0:02:49.1]}
11. Nc3 {[%clk 0:03:02.8]} 11... Nf6 {[%clk 0:02:49.5]} 12. Be3 {[%clk
0:03:01.8]} 12... Bd6 {[%clk 0:02:35.5]} 13. O-O-O {[%clk 0:02:56.4]} 13... O-O
{[%clk 0:02:33.6]} 14. f3 {[%clk 0:02:53.1]} 14... a5 {[%clk 0:02:32.6]} 15. d4
{[%clk 0:02:52.7]} 15... e4 {[%clk 0:02:30.3]} 16. Bg5 {[%clk 0:02:42]} 16...
Nd5 {[%clk 0:02:30.2]} 17. fxe4 {[%clk 0:02:39.2]} 17... Nxc3 {[%clk 0:02:30.1]}
18. bxc3 {[%clk 0:02:40.1]} 18... fxe4 {[%clk 0:02:30.3]} 19. Rhf1 {[%clk
0:02:40.4]} 19... Rxf1 {[%clk 0:02:18.7]} 20. Rxf1 {[%clk 0:02:39.7]} 20... Bxh2
{[%clk 0:02:18.9]} 21. Re1 {[%clk 0:02:38.4]} 21... Re8 {[%clk 0:02:18.2]} 22.
c4 {[%clk 0:02:36.4]} 22... h6 {[%clk 0:02:16.2]} 23. Be3 {[%clk 0:02:35.7]}
23... g5 {[%clk 0:02:13.3]} 24. Kc2 {[%clk 0:02:34.8]} 24... Kg7 {[%clk
0:02:11.7]} 25. Rb1 {[%clk 0:02:33.4]} 25... Bf4 {[%clk 0:02:07]} 26. Rb7+
{[%clk 0:02:29.1]} 26... Kg6 {[%clk 0:02:06.9]} 27. Bf2 {[%clk 0:02:28.5]} 27...
e3 {[%clk 0:02:07]} 28. Be1 {[%clk 0:02:29.3]} 28... Kf5 {[%clk 0:01:49.5]} 29.
Rb6 {[%clk 0:02:25.5]} 29... Ke4 {[%clk 0:01:47.3]} 30. Rxc6 {[%clk 0:02:10]}
30... Kxd4 {[%clk 0:01:43.8]} 31. Bc3+ {[%clk 0:02:10.6]} 31... Ke4 {[%clk
0:01:44.1]} 32. Rxh6 {[%clk 0:02:11]} 32... e2 {[%clk 0:01:36.5]} 33. Be1 {[%clk
0:02:10.5]} 33... Kd4 {[%clk 0:01:23.2]} 34. Rc6 {[%clk 0:02:04.8]} 34... Be3
{[%clk 0:01:17]} 35. Bc3+ {[%clk 0:01:43.8]} 35... Ke4 {[%clk 0:01:15.6]} 36.
Rf6 {[%clk 0:01:44.4]} 36... Bd4 {[%clk 0:01:08.3]} 37. Bxd4 {[%clk 0:00:54]}
37... Kxd4 {[%clk 0:01:09.2]} 38. Rd6+ {[%clk 0:00:49.8]} 38... Kxc4 {[%clk
0:01:08.4]} 39. Rc6+ {[%clk 0:00:48]} 39... Kd5 {[%clk 0:01:05.6]} 40. Rg6
{[%clk 0:00:47.4]} 40... e1=Q {[%clk 0:01:04.9]} 41. Rxg5+ {[%clk 0:00:47.7]}
41... Re5 {[%clk 0:01:05.6]} 42. Rg8 {[%clk 0:00:46.1]} 42... Qe2+ {[%clk
0:01:05.1]} 43. Kb3 {[%clk 0:00:46.4]} 43... Qc4+ {[%clk 0:01:05.1]} 44. Kb2
{[%clk 0:00:44.7]} 44... Re2+ {[%clk 0:01:05.2]} 45. Ka3 {[%clk 0:00:45.2]}
45... Qb4# {[%clk 0:01:05.3]} 0-1

[Event "Late-Titled-Tuesday-Blitz-January-30-2024"]
[Site "Chess.com"]
[Date "2024.01.30"]
[Round "9"]
[White "reevecanada"]
[Black "ural58"]
[Result "0-1"]
[WhiteElo "2586"]
[BlackElo "2483"]
[TimeControl "180+1"]
[EndTime "15:43:08 PST"]
[Termination "ural58 won by checkmate"]

1. e4 {[%clk 0:02:49]} 1... d5 {[%clk 0:02:56.4]} 2. exd5 {[%clk 0:02:48.6]}
2... Qxd5 {[%clk 0:02:55]} 3. Nc3 {[%clk 0:02:49.1]} 3... Qa5 {[%clk 0:02:53.8]}
4. Rb1 {[%clk 0:02:48.7]} 4... e5 {[%clk 0:02:47.5]} 5. Bc4 {[%clk 0:02:46.1]}
5... Nc6 {[%clk 0:02:38.1]} 6. Qh5 {[%clk 0:02:39]} 6... g6 {[%clk 0:02:31.5]}
7. Qf3 {[%clk 0:02:37.7]} 7... f5 {[%clk 0:02:20.2]} 8. Bb5 {[%clk 0:02:29.1]}
8... Bd7 {[%clk 0:02:17.4]} 9. Qd1 {[%clk 0:01:55.4]} 9... a6 {[%clk 0:02:16.9]}
10. Bxc6 {[%clk 0:01:52.9]} 10... Bxc6 {[%clk 0:02:16.4]} 11. Nf3 {[%clk
0:01:53.2]} 11... O-O-O {[%clk 0:02:15.9]} 12. O-O {[%clk 0:01:52.5]} 12... e4
{[%clk 0:02:15.5]} 13. Ng5 {[%clk 0:01:51.8]} 13... Nf6 {[%clk 0:02:07.2]} 14.
Nf7 {[%clk 0:01:48.7]} 14... Bd6 {[%clk 0:02:06.3]} 15. Nxh8 {[%clk 0:01:42.6]}
15... Qe5 {[%clk 0:02:03]} 16. g3 {[%clk 0:01:28.1]} 16... Rxh8 {[%clk
0:02:02.1]} 17. b3 {[%clk 0:01:25.7]} 17... h5 {[%clk 0:01:54.3]} 18. Bb2 {[%clk
0:01:24]} 18... h4 {[%clk 0:01:54.3]} 19. Ne2 {[%clk 0:01:20.5]} 19... Qe7
{[%clk 0:01:51.6]} 20. Nf4 {[%clk 0:00:53.5]} 20... Bxf4 {[%clk 0:01:51.2]} 21.
gxf4 {[%clk 0:00:54.1]} 21... g5 {[%clk 0:01:41.9]} 22. fxg5 {[%clk 0:00:41.4]}
22... Rg8 {[%clk 0:01:42]} 23. Kh1 {[%clk 0:00:19.1]} 23... Rxg5 {[%clk
0:01:41.7]} 24. f3 {[%clk 0:00:15.7]} 24... exf3 {[%clk 0:01:36.9]} 25. Rf2
{[%clk 0:00:13]} 25... Ng4 {[%clk 0:01:36.5]} 26. Qf1 {[%clk 0:00:10.7]} 26...
Nxf2+ {[%clk 0:01:31.2]} 27. Qxf2 {[%clk 0:00:11.6]} 27... Rg2 {[%clk
0:01:31.1]} 28. Qd4 {[%clk 0:00:11.9]} 28... f2 {[%clk 0:01:24.7]} 29. Qh8+
{[%clk 0:00:11.5]} 29... Qd8 {[%clk 0:01:24.8]} 30. Qxd8+ {[%clk 0:00:10.1]}
30... Kxd8 {[%clk 0:01:24.9]} 31. h3 {[%clk 0:00:11]} 31... Rg1+ {[%clk
0:01:24.1]} 32. Kh2 {[%clk 0:00:11.9]} 32... Rxb1 {[%clk 0:01:24]} 33. Bf6+
{[%clk 0:00:12.8]} 33... Ke8 {[%clk 0:01:23.3]} 34. Bxh4 {[%clk 0:00:13.7]}
34... f1=Q {[%clk 0:01:22.5]} 35. Kg3 {[%clk 0:00:14.6]} 35... Re1 {[%clk
0:01:14.2]} 36. Kh2 {[%clk 0:00:14.1]} 36... Qg2# {[%clk 0:01:13.5]} 0-1